Cogmind - Beta 15 @@@ ROGUE MODE // 2025.07.20 @ 11:49:19 Player: Tuja Result: Destroyed by D-53 Grenadier with Mini Grenade Launcher Performance ------------- Evolutions (0) 0 Regions Visited (2) 400 Robots Destroyed (7) 35 Value Destroyed (94) 94 Prototype IDs (0) 0 Alien Tech Used (0) 0 Bonus (0) 0 TOTAL SCORE: 529 Bonus ------- None Cogmind --------- Core Integrity 0/250 Matter 295/300 Energy 84/100 System Corruption 0% Temperature Cool (0) Movement Walking (120) Location -10/Mines Parts ------- > --- POWER (1) -------- (None) > --- PROPULSION (2) --- Aluminum Leg > --- UTILITY (2) ------ Small Storage Unit > --- WEAPON (2) ------- Light Assault Rifle > --- INVENTORY (8) ---- Light Ion Engine Aluminum Leg Heat Sink Small Laser Light Assault Rifle Light Assault Rifle Grenade Launcher Peak State ------------ > --- POWER ------------ Ion Engine > --- PROPULSION ------- Light Treads Light Treads > --- UTILITY ---------- Heat Sink Small Storage Unit > --- WEAPON ----------- EM Pulse Gun Light Assault Rifle > --- INVENTORY -------- Light Ion Engine Aluminum Leg Aluminum Leg Small Laser Small Laser Light Assault Rifle Light Assault Rifle [Rating: 7] Favorites ----------- Power Ion Engine Engine Ion Engine Propulsion Light Treads Treads Light Treads Leg Aluminum Leg Utility Small Storage Unit Device Terrain Scanner Storage Small Storage Unit Weapon Light Assault Rifle Energy Gun EM Pulse Gun Ballistic Gun Light Assault Rifle Build | -11 -10 -10 ------- Run | Yrd Mat Min Slots Evolved . | . . . Power . | . . . Propulsion . | . . . Utility . | . . . Weapon . | . . . Parts Attached 10 | 6 2 2 Power 1 | 1 . . Engine 1 | 1 . . Core . | . . . Reactor . | . . . Propulsion 3 | 2 . 1 Treads 2 | 2 . . Leg 1 | . . 1 Wheel . | . . . Hover . | . . . Flight . | . . . Utility 3 | 1 2 . Device 2 | . 2 . Storage 1 | 1 . . Processor . | . . . Hackware . | . . . Protection . | . . . Artifact . | . . . Weapon 3 | 2 . 1 Energy Gun 1 | 1 . . Energy Cannon . | . . . Ballistic Gun 2 | 1 . 1 Ballistic Cannon . | . . . Launcher . | . . . Special Weapon . | . . . Impact Weapon . | . . . Slashing Weapon . | . . . Piercing Weapon . | . . . Special Melee Weapon . | . . . Unidentified Prototypes . | . . . Parts Lost 6 | . . 6 Power 1 | . . 1 Propulsion 2 | . . 2 Utility 1 | . . 1 Weapon 2 | . . 2 Highest Loss Streak 5 | . . 5 To Critical Strikes . | . . . Average Backups 6 | 3 6 7 Power . | . 1 1 Propulsion 1 | 1 2 2 Utility . | . . 1 Weapon 3 | . 3 3 Tool/Special . | . . . Unused Backups 9 | 1 2 6 Power 2 | . 1 1 Propulsion 2 | 1 . 1 Utility . | . . . Weapon 5 | . 1 4 Tool/Special . | . . . Average Slot Usage (%) 96 | . 92 98 Engine 13 | . 14 13 Treads 27 | . 28 27 Device 11 | . 6 14 Storage 14 | . 14 14 Energy Gun 8 | . 14 5 Ballistic Gun 19 | . 14 22 Peak Build Rating 7 | 6 7 7 Average Rating 6 | 3 6 6 On Entrance 4 | . 6 7 Naked Turns . | . . . Heaviest Build 14 | 13 14 14 Greatest Support 40 | 40 40 40 Greatest Overweight (x) 2 | 1 . 2 Average Overweight (x) . | . . . Largest Inventory Capacity 8 | 8 8 8 Average Capacity 7 | 7 8 8 Most Carried 8 | 6 8 8 Average Carried 7 | 3 6 7 Final Capacity 8 | 8 8 8 Final Carried 8 | 4 8 7 Class Distribution -------------------- 100% | Mutant Dominant Class ---------------- Mutant | -10/Materials Mutant | -10/Mines Resources | -11 -10 -10 ----------- Run | Yrd Mat Min Matter Collected 311 | 209 76 26 Remotely . | . . . Salvage Created 148 | . 95 53 Parts 18 | . 11 7 Haulers Intercepted . | . . . Recyclers Shooed . | . . . Parts Field Recycled . | . . . Retrieved Matter . | . . . Parts Self-Destructed . | . . . Prevented . | . . . Kills | -11 -10 -10 ------- Run | Yrd Mat Min Combat Hostiles Destroyed 7 | . 4 3 Guns 7 | . 4 3 Classes Destroyed 2 | . 2 . Swarmer 6 | . 3 3 Grunt 1 | . 1 . Best Kill Streak 3 | . 3 3 Combat Bots Only 3 | . 3 3 Max Kills in Single Turn 1 | . 1 1 Gunslinging . | . . . Exploded . | . . . Melee . | . . . Uniques/NPCs Destroyed . | . . . Combat | -11 -10 -10 -------- Run | Yrd Mat Min Hostile Shots Fired 61 | . 11 50 Missed 11 | . 2 9 Hits 50 | . 9 41 Melee 2 | . . 2 Projectile 48 | . 9 39 AOE 12 | . . 12 Critical Strikes 1 | . . 1 Damage Taken 798 | . 84 714 Core 256 | . 20 236 Absorbed by Shields . | . . . Core Remaining (%) 100 | 100 . . Volleys Fired 15 | . 5 10 Largest 2 | . 2 2 Hottest 60 | . 60 60 Shots Fired 30 | . 10 20 Gun 30 | . 10 20 Cannon . | . . . Launcher . | . . . Special . | . . . Kinetic 23 | . 5 18 Thermal . | . . . Explosive . | . . . Electromagnetic 7 | . 5 2 Robot Hit Streak 3 | . 2 3 Robot Miss Streak 2 | . 1 2 Penetration Max . | . . . Secondary Targets 1 | . . 1 Max Gunslinging Chain 1 | . . 1 Shots Hit Robots 19 | . 6 13 Core Hits 11 | . 5 6 Critical Kills . | . . . Critical Parts Destroyed . | . . . Critical Strikes . | . . . Melee Attacks . | . . . Impact . | . . . Slashing . | . . . Piercing . | . . . Sneak Attacks . | . . . Combat Hostiles . | . . . Follow-up Attacks . | . . . Damage Inflicted 168 | . 53 115 Guns 168 | . 53 115 Cannons . | . . . Explosions . | . . . Melee . | . . . Ramming . | . . . Kinetic 148 | . 43 105 Thermal . | . . . Explosive . | . . . Electromagnetic 20 | . 10 10 Impact . | . . . Slashing . | . . . Piercing . | . . . Highest Corruption . | . . . Average Corruption . | . . . Corruption Purged . | . . . Corruption Blocked . | . . . Overload Shots . | . . . Overflow Damage . | . . . Projectiles . | . . . Explosions . | . . . Melee . | . . . Knockbacks . | . . . Impact . | . . . Kinetic . | . . . Secondary . | . . . Self-Inflicted Damage . | . . . Shots . | . . . Rammed . | . . . Targets Rammed . | . . . Kicked . | . . . Crushed . | . . . Highest Temperature 40 | . 40 20 Average Temperature 20 | . 22 15 Received Heat Transfer 12 | . 12 . Siege Activations . | . . . Martial Activations . | . . . Shielding Activations . | . . . Robots Disrupted . | . . . Combat Hostiles . | . . . Robots Corrupted . | . . . Combat Hostiles . | . . . Parts Fried . | . . . Impact Corruptions . | . . . Robots Melted . | . . . Combat Hostiles . | . . . Parts Melted . | . . . Heat Transferred . | . . . Parts Sabotaged . | . . . Parts Stolen . | . . . Parts Stripped . | . . . Power Chain Reactions . | . . . Alert | -11 -10 -10 ------- Run | Yrd Mat Min Maximum Alert Level . | . . . Low Security (%) 100 | 100 100 100 Level 1 . | . . . Level 2 . | . . . Level 3 . | . . . Level 4 . | . . . Level 5 . | . . . High Security . | . . . Max Security . | . . . Peak Influence 80 | . 80 60 Initial 7 | . . 7 Average 17 | . 44 9 Influence Increases 170 | . 100 70 Destroy 0b10 Robot/C 140 | . 80 60 Destroy Leader 30 | . 20 10 Influence Decreases 170 | . 80 90 Entered New Map 13 | . . 13 Time Decay 157 | . 80 77 Squads Dispatched 1 | . 1 . Investigation . | . . . Extermination . | . . . Reinforcement 1 | . 1 . Assault . | . . . Garrison . | . . . Intercept . | . . . Searches Triggered . | . . . Construction Impeded . | . . . Haulers Reinforced . | . . . Active Scanning Responses . | . . . Cargo Convoy Interrupts . | . . . Stealth | -11 -10 -10 --------- Run | Yrd Mat Min Distress Signals 2 | . 2 . Communications Jammed . | . . . Distress Signals . | . . . Times Spotted 15 | . 6 9 Peak Tracking Total 6 | . 4 6 Tactical Retreats . | . . . Traps | -11 -10 -10 ------- Run | Yrd Mat Min Traps Triggered . | . . . Indirectly . | . . . Trap Hack Attempts . | . . . Triggered . | . . . Disarmed . | . . . Reprogrammed . | . . . Reused . | . . . Traps Extracted . | . . . Installed . | . . . Triggered . | . . . Machines | -11 -10 -10 ---------- Run | Yrd Mat Min Machines Disabled . | . . . Max in Single Turn . | . . . Machines Repaired . | . . . Machines Dismantled . | . . . Machines Sabotaged . | . . . Overloaded Fab Kills . | . . . Hacking | -11 -10 -10 --------- Run | Yrd Mat Min Machines Accessed . | . . . Terminals . | . . . Fabricators . | . . . Repair Stations . | . . . Recycling Units . | . . . Scanalyzers . | . . . Garrison Access . | . . . Total Hacks . | . . . Successful . | . . . Failed . | . . . Catastrophic . | . . . Database Lockouts . | . . . Manual . | . . . Terminals . | . . . Fabricators . | . . . Repair Stations . | . . . Recycling Units . | . . . Scanalyzers . | . . . Garrison Access . | . . . Terminal Hacks . | . . . Fabricator Hacks . | . . . Repair Station Hacks . | . . . Recycling Unit Hacks . | . . . Scanalyzer . | . . . Garrison Access Hacks . | . . . Unauthorized Hacks . | . . . Terminals . | . . . Fabricators . | . . . Repair Stations . | . . . Recycling Units . | . . . Scanalyzers . | . . . Garrison Access . | . . . Data Cores Recovered . | . . . Used . | . . . Hacking Detections . | . . . Full Trace Events . | . . . Feedback Events . | . . . Feedback Blocked . | . . . Robot Schematics Acquired . | . . . Robots Built . | . . . Authchips . | . . . Time . | . . . Total Robot Build Rating . | . . . Part Schematics Acquired . | . . . Parts Built . | . . . Authchips . | . . . Time . | . . . Total Part Build Rating . | . . . Parts Repaired . | . . . Time . | . . . Parts Recycled . | . . . Recycled Matter . | . . . Retrieved Matter . | . . . Retrieved Components . | . . . Parts Scanalyzed . | . . . Part Schematics Acquired . | . . . Parts Damaged . | . . . Bothacking | -11 -10 -10 ------------ Run | Yrd Mat Min Used RIF Installer . | . . . Robots Hacked . | . . . Non-combat . | . . . Combat . | . . . Robot Hacks Applied . | . . . Relay Couplers Released . | . . . Fabnet Peak Effective % . | . . . Robots Rewired . | . . . Allies Hacked . | . . . Hacks Repelled . | . . . Allies | -11 -10 -10 -------- Run | Yrd Mat Min Total Allies . | . . . Largest Group . | . . . Highest-Rated Group . | . . . Highest-Rated Ally . | . . . Total Orders . | . . . Ally Attacks . | . . . Total Damage . | . . . Kills . | . . . Allies Corrupted . | . . . Allies Melted . | . . . Intel | -11 -10 -10 ------- Run | Yrd Mat Min Active Infowar (turns) 510 | . 76 434 Terrain 510 | . 76 434 Robot Analysis Total . | . . . Derelict Logs Recovered . | . . . Drone Launches . | . . . Drone Recoveries . | . . . Exploration | -11 -10 -10 ------------- Run | Yrd Mat Min Turns Passed 710 | 96 180 434 Spaces Moved 366 | 53 96 217 Core 8 | 7 . 1 Treads 358 | 46 96 216 Legs . | . . . Wheels . | . . . Hover . | . . . Flight . | . . . Fastest Speed 50 | 50 160 150 Average Speed 158 | 151 160 159 Slowest Speed 160 | 160 160 160 Overloaded Moves . | . . . Propulsion Burnouts . | . . . Robots Hopped . | . . . Potential Cave-ins . | . . . Cave-ins Triggered . | . . . Exploration Rate (%) 24 | 4 20 50 Regions Visited 2 Branch Regions 1 Pre-discovered Areas . | . . . Known Exits Taken . | . . . Unknown Exits Taken 2 | 1 1 . Scrap Searched . | . . . Spaces Dug . | . . . Terrain Destroyed . | . . . Melee . | . . . Projectile . | . . . AOE . | . . . Terrain Rammed . | . . . Walls Destroyed . | . . . Machines Disabled . | . . . Actions | -11 -10 -10 --------- Run | Yrd Mat Min Total 472 | 70 115 287 Wait 59 | . 2 57 Move 364 | 52 95 217 Hop . | . . . Pick Up 20 | 11 8 1 Fast Attach . | . . . Attach 9 | 6 1 2 Detach . | . . . Swap 1 | . 1 . Drop 4 | 1 3 . Fire 15 | . 5 10 Melee . | . . . Ram . | . . . Kick . | . . . Crush . | . . . Escape Stasis . | . . . Rewire . | . . . Trap . | . . . Miscellaneous . | . . . Route ------- -11/Scrapyard -10/Materials -10/Mines (discovered 1 exit: [*Sub]) History --------- Turn | Location | Event 7 | -11/Scrapyard | Discovered new exit (range 15) 97 | -11/Scrapyard | Entered Materials 159 | -10/Materials | Discovered new exit (range 16) 277 | -10/Materials | Entered Mines 304 | -10/Mines | Build established: Mutant 331 | -10/Mines | Discovered new exit (range 7) 668 | -10/Mines | Assembled infested the area 673 | -10/Mines | Assisted by a Guerilla fighting off Assembled 688 | -10/Mines | A weapon hastily lodged in a ceiling crevice suddenly fell to the ground 708 | -10/Mines | Core integrity fell below 50% 710 | -10/Mines | Core integrity fell below 20% 711 | -10/Mines | Destroyed by D-53 Grenadier with Mini Grenade Launcher Last Messages --------------- come on!" 00688_ A Mak. Sword has been hastily shoved under some rubble with a note attached: "Here lies the sword of MA-1KR the Great. I think." 00693_ 8K-JP8(h): "I'll hold them off! Go on ahead or try to find another way!" 00695_ HV Slug penetrates Earth. 00696_ The unstable cave ceiling collapses. 00697_ 8K-JP8(h) destroyed. 00698_ The unstable cave ceiling collapses. 00700_ K-01 Serf collects debris. 00701_ The unstable cave ceiling collapses. 00703_ Ion Engine destroyed. 00704_ Lgt. Treads destroyed. 00705_ Lgt. Assault Rifle destroyed. 00705_ as-35900 destroyed. 00707_ Lgt. Treads destroyed. 00709_ K-01 Serf collects debris. 00709_ as-70556 destroyed. 00711_ Terrain Scanner destroyed. Map ----- +----------------------------------------------------+ | ?????????????????????????????????????????????????? | | ?????????????????????????????????????????????????? | | ?????????????????????????????????????????????????? | | ?????????????????????????????????????????????????? | | ?????????????????????????????????????????????????? | | ?????????????????????????????????????????????????? | | ?????????????????????????????????????????????????? | | ?????????????????????????????????????????????????? | | ?????????????????????????????????????????????????? | | ?????????????????????????????#????????????????#??? | | ???????????? ??????????????$#???????????????????? | | ????????????# ???????????## #???????????????????? | | ????????????? #?????????# ####????????????????? | | ?????????????? ???????? % ##???????????????? | | ??????????????? ??????## # k #???????????????? | | ???????????????# ?????# #????????? ?????? | | ???????????????# ????## #% #???????????? ???? | | ??????????????## ##### # ##???????????????? | | ???????????????# dd #???????????????? | | ???????????????# #??????????#?????? | | ????????#???#?## # #?????????????#???? | | ???????????????# ####????????#????????? | | ??????????????## #????##?????????????? | | ???????????????## ## ###???????????? | | ????????????????# #?????#????? | | ???????????????## @ u #??????????# | | ????????????????### # ## #?????###???? | | ??????????????????## #??#?# #????# ##??? | | ???????????????????# ##????# #?### ##?? | | ????????????? ???? # ##?????# ### ##### | | ?????????????????#### ##a#########?# ## #????# | | ????????????????#???# ?# #### ### ## #?????? | | ??????????????????#?# ## ### #????## | | ????????????????????# #???## | | ??????????????????#?######### ##### #???# | | ????????????????????????????# ##???# ##?#?# | | ?????????????????????????#??# ###???## #???## | | ????????????????????????????# #?#???# ##?## | | ????????????????????????????# #?????# ### | | ????????????????????????????# #?##### | | ????????????????????????????# ## | | ????????????????????????????# ## #### ### | | ????????????????????????????# ##????## ##?# | | ????????????????????????????# ??????## #?## | | ????????????????????????????####??????## ## | | ??????????????????????????????????????# % | | ??????????????????????????????????#???# | | ?????????????????????????????????????## % | | ?????????????????????????????????????# | | ?????????????????????????????????????# | +----------------------------------------------------+ Best States ------------- Heat Dissipation 35 Energy Generation 10 Energy Capacity 250 Matter Stores 300 Matter Capacity 300 Sight Range 16 Terrain Scan Range 14 Terrain Scan Density 10 Evasion (%) 40 Recoil Reduction 2 Item Schematics ----------------- None Robot Schematics ------------------ None Fabricated ------------ Nothing Repaired ---------- Nothing Alien Tech Used ----------------- None Achievements -------------- None Challenges ------------ None Game ------ Seed AssaultElectronCorpse Manual? 0 Play Time 00:07:45 Cumulative 32.6 hours Start 2025.07.20 @ 11:43:54 End 2025.07.20 @ 11:49:19 Sessions 1 Manual Loads 0 Difficulty Rogue Special Mode None Game No. 16 Rogue 12 Adventurer 4 Explorer 0 Win Type - Total 0 Types 0/0/0/0/0/0/0/0/0/0 Lore% 23 Gallery% 28 Achievement% 25 Wizard Run 0 Options --------- Layout 1 ASCII 0 Keyboard 0 Movement Numpad Keybinds 1 Fullscreen 1 Font 24/Smallcaps Map View 50x35 Zoom Use 0% Tactical HUD 1 Map Filters NONE Filters NONE Steam 1 RUN: 46366913-f9fb-4ee5-9194-9fff9114cc39